fUSD/lending_fUSD_20240924
["ID","MTS","AMOUNT","RATE_DAILY","PERIOD"]
[339068160,1727194232298,-150.0,0.00012192,2]
[339068161,1727194232308,-150.0,0.00012192,2]
[339068162,1727194232319,-428.31,0.00012192,2]
[339068163,1727194232329,-150.0,0.00012192,2]
[339068164,1727194232339,-428.31,0.00012192,2]
[339068165,1727194232349,-207.8,0.00012192,2]
[339068166,1727194232359,-1400.0,0.000122,4]
[339068167,1727194232369,-1800.0,0.000123,4]
[339068168,1727194232379,-150.0,0.00012304,2]
[339068169,1727194232390,-753.48,0.00012384,2]
[339068170,1727194232400,-300.0,0.000124,4]
[339068171,1727194232410,-168.23,0.00012445,2]
[339068172,1727194232421,-150.0,0.00012447,2]
[339068173,1727194232432,-300.0,0.000125,4]
[339068174,1727194232442,-150.0,0.00012591,2]
[339068175,1727194232454,-300.0,0.000126,4]
[339068176,1727194232464,-150.0,0.00012676,2]
[339068177,1727194232474,-258.0,0.00012681,2]
[339068178,1727194232484,-932.0,0.00012681,2]
[339068179,1727194232494,-1372.71093522,0.0001269,2]
[339068180,1727194232504,-17010.83199911,0.000127,2]
[339068181,1727194232518,-1326.47409564,0.000127,2]
[339068182,1727194232532,-650.46764922,0.000127,2]
[339068183,1727194232543,-361.36554768,0.000127,2]
[339068184,1727194232559,-1316.73334251,0.000127,2]
[339068185,1727194232571,-6845.16,0.000127,2]
[339068186,1727194232585,-479.84771151,0.000127,2]
[339068187,1727194232597,-354.07865179,0.000127,2]
[339068188,1727194232611,-310.2807366,0.000127,2]
[339068189,1727194232621,-214.3555,0.000127,2]
[339068190,1727194232632,-261.1396,0.000127,2]
[339068191,1727194232647,-167.84679538,0.000127,4]
[339068192,1727194232660,-132.15320462,0.000127,4]
[339068193,1727194232670,-1775.67732107,0.000127,2]
[339068194,1727194232681,-1775.67732099,0.00012711,2]
[339068195,1727194232692,-237.01900386,0.00012722,2]
[339068196,1727194232704,-851.45896926,0.00012722,2]
[339068197,1727194232718,-520.41993916,0.00012722,2]
[339068198,1727194232731,-166.77940871,0.00012722,2]
[339068199,1727194232742,-133.52059129,0.00012733,2]
[339068200,1727194232759,-1642.1567297,0.00012733,2]
[339068201,1727194232770,-150.0,0.00012734,2]
[339068202,1727194232781,-1775.67732099,0.00012744,2]
[339068203,1727194232791,-543.50507139,0.00012756,2]
[339068205,1727194237653,-1232.1722496,0.00012756,2]
[339068206,1727194237664,-1775.67732099,0.00012767,2]
[339068207,1727194237675,-1775.67732099,0.00012778,2]
[339068208,1727194237686,-1775.67732099,0.00012789,2]
[339068209,1727194237697,-500.0,0.00012796,2]
[339068210,1727194237707,-500.0,0.00012797,2]
[339068211,1727194237719,-200.0,0.00012797,2]
[339068212,1727194237730,-2368.7144,0.00012797,2]
[339068213,1727194237740,-150.0,0.00012798,2]
[339068214,1727194237752,-500.0,0.00012798,2]
[339068215,1727194237762,-9798.8944,0.00012799,2]
[339068216,1727194237773,-1536.04874054,0.00012799,2]
[339068217,1727194237786,-289.394105,0.00012799,2]
[339068218,1727194237809,-474.71702,0.00012798,2]
[339068219,1727194237918,-525.28298,0.00012798,2]
[339068220,1727194237929,-527.91017186,0.00012799,2]
[339068221,1727194237972,-146.6469826,0.00012799,2]
[339068222,1727194237982,-346.47063941,0.000128,2]
[339068223,1727194237995,-146.72836059,0.000128,2]
[339068224,1727194238005,-801.5619,0.000128,2]
[339068225,1727194238015,-1088.5985,0.000128,2]
[339068226,1727194238025,-11143.32140966,0.000128,2]
[339068228,1727194239592,-722.93818285,0.000128,2]
[339068229,1727194240846,-303.56605002,0.000128,2]
[339068281,1727194242522,-1161.43992002,0.000128,2]
[339068286,1727194242679,-2896.0,0.000128,2]
[339068287,1727194242786,-11578.02151287,0.000128,2]
[339068288,1727194242797,-1020.49863133,0.000128,2]
[339068289,1727194242838,-1313.5372982,0.000128,2]
[339068303,1727194245766,-5977.76890731,0.000128,2]
[339068306,1727194427110,375.15,9.964e-05,2]
[339068307,1727194517941,667.50687336,0.00022,120]
[339068308,1727194697722,262.08,0.00010959,2]
[339068309,1727194929920,250.0,0.00022,120]
[339068310,1727194940018,250.0,0.00022,120]
[339068311,1727194961982,160.5,0.00011106,2]
[339068312,1727194974126,250.0,0.00022,120]
[339068313,1727194980666,2103.13606231,0.00021,60]
[339068314,1727195013193,371.97,9.885e-05,2]
[339068315,1727195033043,245.09225097,0.00022,120]
[339068483,1727195431738,-203.98983229,0.00011539,2]
[339068485,1727195431747,-203.98983229,0.00011569,2]
[339068486,1727195431756,-150.0,0.00011589,2]
[339068487,1727195431766,-203.98983229,0.00011599,2]
[339068488,1727195431778,-271.73050313,0.00011626,2]
[339068489,1727195431905,-503.82949687,0.00011626,2]
[339068490,1727195431915,-1500.0,0.00011639,2]
[339068491,1727195431923,-150.27,0.00011699,2]
[339068492,1727195431934,-250.0,0.00011807,2]
[339068493,1727195431943,-1000.0,0.0001181,2]
[339068494,1727195431952,-215.25,0.00011825,2]
[339068495,1727195431961,-169.25,0.00011827,2]
[339068496,1727195431970,-499.99,0.00011827,2]
[339068497,1727195431979,-190.18,0.00011897,2]
[339068498,1727195431988,-3800.96,0.00011901,2]
[339068499,1727195431998,-300.0,0.00012148,2]
[339068500,1727195432007,-246.0,0.00012148,2]
[339068501,1727195432016,-371.97,0.00012149,2]
[339068502,1727195432028,-753.64,0.00012265,2]
[339068503,1727195432036,-753.64,0.000123,2]
[339068504,1727195432046,-36739.0,0.00012507,2]
[339068505,1727195432055,-320.89,0.00012699,2]
[339068506,1727195432069,-150.0,0.00012699,2]
[339068507,1727195432078,-150.88,0.000127,2]
[339068508,1727195432087,-12248.9453,0.000127,2]
[339068509,1727195432096,-428.14,0.000127,2]
[339068510,1727195432106,-718.02,0.000127,2]
[339068511,1727195432115,-753.64,0.000127,2]
[339068512,1727195432123,-753.64,0.000127,2]
[339068513,1727195432132,-182.20648789,0.00012704,2]
[339068515,1727195432143,-166.8748,0.00012704,2]
[339068517,1727195432153,-338.90129984,0.0001279,2]
[339068519,1727195432163,-3891.4521,0.0001279,2]
[339068521,1727195432172,-2500.0,0.0001279,2]
[339068523,1727195432181,-500.0,0.00012797,2]
[339068525,1727195432191,-200.0,0.00012797,2]
[339068527,1727195432200,-23414.7689,0.00012797,2]
[339068529,1727195432209,-567.28725526,0.00012797,2]
[339068531,1727195432219,-567.28725522,0.00012797,2]
[339068533,1727195432228,-567.28725522,0.00012798,2]
[339068535,1727195432237,-10187.9788,0.00012798,2]
[339068537,1727195432246,-567.28725522,0.00012798,2]
[339068539,1727195432256,-6356.83447079,0.00012798,2]
[339068541,1727195432265,-2500.0,0.00012798,2]
[339068542,1727195432276,-567.28725522,0.00012798,2]
[339068544,1727195432286,-567.28725522,0.00012799,2]
[339068546,1727195432295,-567.28725522,0.00012799,2]
[339068548,1727195432305,-6356.83447077,0.00012799,2]
[339068550,1727195432314,-567.28725522,0.00012799,2]
[339068552,1727195432323,-567.28725522,0.000128,2]
[339068554,1727195432332,-1000.0,0.000128,2]
[339068556,1727195432341,-1000.0,0.000128,2]
[339068557,1727195432350,-1000.0,0.000128,2]
[339068559,1727195432360,-1000.0,0.000128,2]
[339068560,1727195432369,-2850.0,0.000128,2]
[339068561,1727195432378,-2000.0,0.000128,2]
[339068562,1727195432388,-200.0,0.000128,2]
[339068563,1727195432398,-150.0,0.000128,2]
[339068564,1727195432407,-300.51,0.000128,2]
[339068565,1727195432417,-1506.97,0.000128,2]
[339068566,1727195432426,-876.41,0.000128,2]
[339068567,1727195432435,-567.28725522,0.000128,2]
[339068568,1727195432444,-6356.83447077,0.000128,2]
[339068569,1727195432453,-16344.12563084,0.00012804,2]
[339068570,1727195432464,-656.69375819,0.00012804,2]
[339068571,1727195432475,-3702.08686573,0.00012804,2]
[339068572,1727195432490,-397.56791311,0.00012804,2]
[339068573,1727195432501,-642.3977412,0.00012804,2]
[339068648,1727195439678,-16384.0,0.00012804,2]
[339068649,1727195439690,-560.58454009,0.00012804,2]
[339068650,1727195439791,-1266.4714571,0.00012804,2]
[339068651,1727195439803,-320.49640001,0.00012804,2]
[339068652,1727195439815,-1571.5,0.00012804,2]
[339068653,1727195439848,-133069.28682917,0.00012804,2]
[339068654,1727195439857,-14834.83,0.00012805,2]
[339068655,1727195439867,-593.314,0.00012811,2]
[339068656,1727195439876,-218.348,0.00012811,2]
[339068657,1727195439885,-238.714,0.00012872,2]
[339068658,1727195439895,-151.47,0.0001288,2]
[339068671,1727195440081,-171.48637452,0.0001288,2]
[339068673,1727195440090,-236496.3716086,0.0001289,2]
[339068675,1727195440101,-300.0,0.0001289,2]
[339068678,1727195440113,-28924.66888036,0.0001289,2]
[339068681,1727195440124,-4130.24694756,0.0001289,2]
[339068685,1727195440140,-989.22878096,0.0001289,2]
[339068689,1727195440152,-952.47687904,0.0001289,2]
[339068692,1727195440163,-1735.87471476,0.0001289,2]
[339068946,1727195442990,-11699.81589364,0.0001289,2]
[339068951,1727195446079,-370.40079568,0.00012798,2]
[339068952,1727195446088,-36329.38743529,0.0001289,2]
[339068953,1727195446099,-2195.89994358,0.0001289,2]
[339068954,1727195446111,-633.336,0.0001289,2]
[339068955,1727195563815,348.79,0.00010027,2]
[339068957,1727196121385,331.35,9.939e-05,2]
[339069103,1727196631848,-300.0,0.00011588,2]
[339069105,1727196631858,-150.0,0.00011589,2]
[339069107,1727196631867,-284.14672273,0.00011589,2]
[339069109,1727196631876,-246.58357932,0.00011589,2]
[339069111,1727196631885,-171.57410942,0.00011589,2]
[339069112,1727196631897,-168.44385972,0.00011589,2]
[339069114,1727196631906,-195.0867668,0.00011589,2]
[339069115,1727196631915,-150.20135592,0.00011589,2]
[339069116,1727196631923,-256.17612795,0.00011589,2]
[339069117,1727196631932,-152.2575597,0.00011589,2]
[339069118,1727196631941,-150.6633139,0.00011589,2]
[339069119,1727196631950,-244.42361065,0.00011589,2]
[339069120,1727196631962,-151.04247027,0.00011589,2]
[339069121,1727196631972,-170.97,0.0001172,2]
[339069122,1727196631981,-206.63567439,0.00011728,2]
[339069123,1727196631993,-450.0,0.00011728,2]
[339069124,1727196632005,-267.95,0.00011728,2]
[339069125,1727196632018,-575.41432561,0.00011728,2]
[339069126,1727196632028,-4.49941339,0.00011752,2]
[339069127,1727196632125,-752.8607206,0.00011752,2]
[339069133,1727196638098,-242.63986601,0.00011752,2]
[339069134,1727196638108,-165.43,0.00011761,2]
[339069135,1727196638117,-51.97013399,0.0001177,2]
[339069193,1727196639966,-198.02986601,0.0001177,2]
[339069195,1727196639976,-159.78,0.00011928,2]
[339069197,1727196639985,-162.3469241,0.00012,7]
[339069199,1727196639995,-331.35,0.00012203,2]
[339069201,1727196640005,-153.285102,0.00012215,2]
[339069203,1727196640015,-242.229916,0.00012215,2]
[339069205,1727196640025,-153.285102,0.00012367,2]
[339069207,1727196640034,-176.45947964,0.00012367,2]
[339069209,1727196640045,-65.77043636,0.00012367,2]
[339069211,1727196640055,-499.99,0.00012367,2]
[339069213,1727196640064,-753.64,0.000124,2]
[339069215,1727196640073,-169.33,0.00012445,2]
[339069217,1727196640083,-9190.40361949,0.000125,2]
[339069219,1727196640092,-153.285102,0.0001252,2]
[339069221,1727196640102,-242.229916,0.0001252,2]
[339069223,1727196640111,-1026.6425887,0.00012632,2]
[339069225,1727196640119,-1118.99474559,0.00012632,2]
[339069227,1727196640129,-153.285102,0.00012673,2]
[339069229,1727196640138,-242.229916,0.00012673,2]
[339069231,1727196640147,-150.0,0.00012689,2]
[339069233,1727196640157,-37717.9749,0.0001269,2]
[339069235,1727196640166,-2500.0,0.0001269,2]
[339069237,1727196640175,-380.7447,0.0001269,2]
[339069238,1727196640184,-594.64,0.000127,2]
[339069240,1727196640194,-422.91,0.000127,2]
[339069242,1727196640203,-422.91,0.000127,2]
[339069244,1727196640213,-845.65,0.000127,2]
[339069246,1727196640222,-285.64,0.000127,2]
[339069248,1727196640231,-550.9499,0.00012704,2]
[339069250,1727196640241,-420.0,0.00012726,2]
[339069252,1727196640251,-448.8191,0.0001279,2]
[339069254,1727196640260,-11278.3258,0.0001279,2]
[339069255,1727196640269,-245000.0,0.0001279,2]
[339069256,1727196640279,-2681.0433,0.0001279,2]
[339069257,1727196640289,-500.0,0.00012797,2]
[339069258,1727196640298,-200.0,0.00012797,2]
[339069259,1727196640308,-246.93386378,0.00012798,2]
[339069260,1727196640317,-637.28715971,0.00012798,2]
[339069261,1727196640327,-246.93386378,0.00012799,2]
[339069262,1727196640336,-637.2871597,0.00012799,2]
[339069263,1727196640345,-753.64,0.000128,2]
[339069264,1727196640354,-246.93386378,0.000128,2]
[339069265,1727196640364,-637.2871597,0.000128,2]
[339069266,1727196640374,-153.285102,0.00012825,2]
[339069267,1727196640383,-242.229916,0.00012825,2]
[339069268,1727196640393,-500.0,0.00012873,2]
[339069269,1727196640405,-500.0,0.00012873,2]
[339069270,1727196640415,-500.0,0.00012876,2]
[339069271,1727196640425,-4166.66,0.00012876,2]
[339069272,1727196640435,-500.0,0.00012876,2]
[339069273,1727196640444,-150.0,0.00012877,2]
[339069274,1727196640453,-171.48637453,0.0001288,2]
[339069278,1727196640654,-151.47,0.0001288,2]
[339069279,1727196640664,-474.651,0.00012889,2]
[339069280,1727196640674,-218.349,0.00012889,2]
[339069281,1727196640682,-500.0,0.00012889,2]
[339069282,1727196640692,-547.17684261,0.00012889,2]
[339069283,1727196640701,-4166.66,0.00012889,2]
[339069284,1727196640710,-4166.66,0.00012889,2]
[339069285,1727196640720,-199.43443188,0.00012889,2]
[339069286,1727196640729,-447.51634155,0.00012889,2]
[339069287,1727196640738,-558.7056992,0.00012889,2]
[339069288,1727196640747,-513.39762756,0.00012889,2]
[339069289,1727196640756,-636.97380259,0.00012889,2]
[339069290,1727196640765,-500.0,0.00012889,2]
[339069291,1727196640774,-500.0,0.00012889,2]
[339069292,1727196640783,-595.92837323,0.00012889,2]
[339069293,1727196640792,-502.57903951,0.00012889,2]
[339069294,1727196640801,-511.60445843,0.00012889,2]
[339069295,1727196640809,-533.86896856,0.00012889,2]
[339069296,1727196640818,-500.0,0.00012889,2]
[339069297,1727196640827,-524.18668762,0.00012889,2]
[339069298,1727196640836,-100834.14231158,0.0001289,2]
[339069299,1727196640845,-166319.74637831,0.0001289,2]
[339069302,1727196643011,-550.0000005,0.0001289,2]
[339069303,1727196643172,-5629.68405523,0.0001289,2]
[339069304,1727196643186,-84957.17900853,0.0001289,2]
[339069305,1727196643198,-715.58487265,0.0001289,2]
[339069309,1727196645903,-1094.39068346,0.0001269,2]
[339069310,1727196646062,-489.59461654,0.0001269,2]
[339069311,1727196646071,-824.86168596,0.0001289,2]
[339069333,1727196748336,313.77,9.983e-05,2]
[339069334,1727196926864,154.72,0.00010959,2]
[339069358,1727197300058,313.54,9.776e-05,2]
[339069362,1727197472605,257.47,0.00010959,2]
[339069363,1727197485679,200.0,0.00010904,2]
[339069365,1727197583788,250.0,0.00010608,2]
[339069412,1727197764190,250.0,0.00010959,2]
[339069415,1727197832305,-157.73970547,0.00011144,2]
[339069416,1727197832314,-1036.06609903,0.00011144,2]
[339069423,1727197838606,-2564.44491418,0.00011144,2]
[339069431,1727197840082,-7729.36240898,0.00011144,2]
[339069432,1727197840090,-316.2234366,0.00011244,2]
[339069433,1727197840100,-150.0,0.00011244,2]
[339069435,1727197840109,-150.87,0.00011244,2]
[339069437,1727197840118,-150.0,0.00011244,2]
[339069439,1727197840127,-150.0,0.00011244,2]
[339069441,1727197840137,-150.0,0.00011244,2]
[339069443,1727197840146,-316.2234366,0.00011256,2]
[339069445,1727197840155,-150.87,0.00011256,2]
[339069447,1727197840164,-150.0,0.00011258,2]
[339069449,1727197840173,-316.2234366,0.00011269,2]
[339069450,1727197840183,-150.87,0.00011269,2]
[339069451,1727197840192,-150.0,0.00011272,2]
[339069452,1727197840394,-316.2234366,0.00011282,2]
[339069453,1727197840405,-150.87,0.00011282,2]
[339069454,1727197840415,-150.0,0.00011286,2]
[339069455,1727197840424,-150.0,0.00011287,2]
[339069456,1727197840435,-300.0,0.00011293,2]
[339069457,1727197840446,-316.2234366,0.00011294,2]
[339069458,1727197840455,-150.87,0.00011294,2]
[339069459,1727197840466,-150.0,0.00011301,2]
[339069460,1727197840476,-316.2234366,0.00011307,2]
[339069462,1727197840486,-150.87,0.00011307,2]
[339069464,1727197840497,-150.0,0.00011315,2]
[339069466,1727197840510,-316.2234366,0.0001132,2]
[339069467,1727197840519,-150.87,0.0001132,2]
[339069468,1727197840528,-150.0,0.00011329,2]
[339069469,1727197840537,-150.0,0.0001133,2]
[339069470,1727197840546,-316.2234366,0.00011332,2]
[339069471,1727197840556,-150.87,0.00011332,2]
[339069472,1727197840565,-150.0,0.00011343,2]
[339069473,1727197840574,-316.2234366,0.00011345,2]
[339069474,1727197840583,-150.87,0.00011345,2]
[339069475,1727197840592,-316.2234366,0.00011357,2]
[339069476,1727197840601,-150.0,0.00011357,2]
[339069477,1727197840610,-150.87,0.00011357,2]
[339069478,1727197840619,-316.2234366,0.0001137,2]
[339069479,1727197840628,-150.87,0.0001137,2]
[339069480,1727197840637,-150.0,0.00011372,2]
[339069481,1727197840646,-150.0,0.00011373,2]
[339069482,1727197840655,-316.2234366,0.00011383,2]
[339069483,1727197840665,-150.87,0.00011383,2]
[339069484,1727197840674,-150.0,0.00011386,2]
[339069485,1727197840683,-150.0,0.00011386,2]
[339069486,1727197840691,-316.2234366,0.00011395,2]
[339069487,1727197840701,-150.87,0.00011395,2]
[339069488,1727197840711,-150.0,0.000114,2]
[339069489,1727197840721,-316.2234366,0.00011408,2]
[339069490,1727197840731,-150.87,0.00011408,2]
[339069491,1727197840740,-150.0,0.00011414,2]
[339069492,1727197840751,-150.0,0.00011416,2]
[339069493,1727197840760,-316.2234366,0.00011421,2]
[339069494,1727197840769,-150.87,0.00011421,2]
[339069495,1727197840779,-150.0,0.00011428,2]
[339069496,1727197840788,-316.2234366,0.00011433,2]
[339069497,1727197840797,-150.87,0.00011433,2]
[339069498,1727197840807,-150.0,0.00011443,2]
[339069499,1727197840816,-316.2234366,0.00011446,2]
[339069500,1727197840826,-150.87,0.00011446,2]
[339069501,1727197840835,-150.0,0.00011457,2]
[339069502,1727197840844,-316.2234366,0.00011458,2]
[339069503,1727197840854,-150.87,0.00011458,2]
[339069504,1727197840863,-150.0,0.00011459,2]
[339069505,1727197840873,-316.2234366,0.00011471,2]
[339069506,1727197840882,-150.0,0.00011471,2]
[339069508,1727197840891,-150.87,0.00011471,2]
[339069510,1727197840901,-316.2234366,0.00011484,2]
[339069511,1727197840910,-150.87,0.00011484,2]
[339069514,1727197840920,-150.0,0.00011485,2]
[339069516,1727197840929,-150.0,0.00011494,2]
[339069518,1727197840941,-316.2234366,0.00011496,2]
[339069519,1727197840950,-150.87,0.00011496,2]
[339069521,1727197840960,-150.0,0.00011499,2]
[339069523,1727197840969,-150.0,0.00011502,2]
[339069525,1727197840979,-316.2234366,0.00011509,2]
[339069527,1727197840989,-150.87,0.00011509,2]
[339069529,1727197840998,-150.0,0.00011514,2]
[339069531,1727197841008,-316.2234366,0.00011521,2]
[339069533,1727197841018,-150.87,0.00011521,2]
[339069535,1727197841028,-150.0,0.00011528,2]
[339069536,1727197841038,-316.2234366,0.00011534,2]
[339069537,1727197841047,-150.87,0.00011534,2]
[339069538,1727197841056,-150.0,0.00011542,2]
[339069539,1727197841065,-150.0,0.00011545,2]
[339069540,1727197841074,-316.2234366,0.00011547,2]
[339069541,1727197841083,-150.87,0.00011547,2]
[339069542,1727197841092,-150.0,0.00011556,2]
[339069544,1727197841101,-316.2234366,0.00011559,2]
[339069546,1727197841110,-150.87,0.00011559,2]
[339069548,1727197841119,-150.0,0.0001157,2]
[339069550,1727197841129,-316.2234366,0.00011572,2]
[339069552,1727197841138,-150.87,0.00011572,2]
[339069554,1727197841147,-316.2234366,0.00011585,2]
[339069556,1727197841156,-150.0,0.00011585,2]
[339069558,1727197841165,-150.87,0.00011585,2]
[339069560,1727197841174,-150.0,0.00011588,2]
[339069562,1727197841184,-316.2234366,0.00011597,2]
[339069564,1727197841193,-150.87,0.00011597,2]
[339069565,1727197841202,-150.0,0.00011599,2]
[339069567,1727197841211,-316.2234366,0.0001161,2]
[339069569,1727197841221,-150.87,0.0001161,2]
[339069571,1727197841230,-150.0,0.00011613,2]
[339069573,1727197841239,-316.2234366,0.00011622,2]
[339069575,1727197841250,-150.87,0.00011622,2]
[339069577,1727197841259,-150.0,0.00011627,2]
[339069579,1727197841268,-150.0,0.00011632,2]
[339069581,1727197841277,-316.2234366,0.00011635,2]
[339069583,1727197841286,-150.87,0.00011635,2]
[339069585,1727197841295,-150.0,0.00011641,2]
[339069586,1727197841304,-316.2234366,0.00011648,2]
[339069587,1727197841313,-150.87,0.00011648,2]
[339069588,1727197841322,-250.0,0.00011655,2]
[339069589,1727197841332,-150.0,0.00011656,2]
[339069590,1727197841341,-316.2234366,0.0001166,2]
[339069591,1727197841351,-150.87,0.0001166,2]
[339069592,1727197841360,-150.0,0.0001166,2]
[339069593,1727197841369,-150.0,0.0001167,2]
[339069594,1727197841380,-1000.0,0.00011672,2]
[339069595,1727197841390,-316.2234366,0.00011673,2]
[339069596,1727197841400,-150.87,0.00011673,2]
[339069597,1727197841409,-150.0,0.00011675,2]
[339069598,1727197841421,-150.0,0.00011684,2]
[339069599,1727197841432,-316.2234366,0.00011686,2]
[339069600,1727197841443,-150.87,0.00011686,2]
[339069601,1727197841454,-160.95,0.00011689,2]
[339069602,1727197841463,-1500.0,0.00011694,2]
[339069603,1727197841472,-316.2234366,0.00011698,2]
[339069604,1727197841481,-150.0,0.00011698,2]
[339069605,1727197841490,-150.87,0.00011698,2]
[339069606,1727197841500,-316.2234366,0.00011711,2]
[339069607,1727197841509,-150.87,0.00011711,2]
[339069608,1727197841518,-150.0,0.00011712,2]
[339069609,1727197841528,-150.0,0.00011718,2]
[339069610,1727197841537,-316.2234366,0.00011723,2]
[339069611,1727197841546,-150.87,0.00011723,2]
[339069612,1727197841556,-150.0,0.00011727,2]
[339069613,1727197841566,-316.2234366,0.00011736,2]
[339069614,1727197841575,-150.87,0.00011736,2]
[339069615,1727197841584,-150.0,0.00011741,2]
[339069616,1727197841593,-150.0,0.00011744,2]
[339069617,1727197841602,-316.2234366,0.00011749,2]
[339069618,1727197841613,-150.87,0.00011749,2]
[339069619,1727197841623,-150.0,0.00011755,2]
[339069620,1727197841632,-150.0,0.00011761,2]
[339069621,1727197841640,-316.2234366,0.00011761,2]
[339069622,1727197841650,-150.87,0.00011761,2]
[339069623,1727197841659,-150.0,0.00011769,2]
[339069624,1727197841668,-316.2234366,0.00011774,2]
[339069625,1727197841677,-150.87,0.00011774,2]
[339069626,1727197841686,-150.0,0.00011783,2]
[339069627,1727197841695,-316.2234366,0.00011786,2]
[339069628,1727197841704,-150.87,0.00011786,2]
[339069629,1727197841714,-150.0,0.00011798,2]
[339069630,1727197841723,-316.2234366,0.00011799,2]
[339069631,1727197841733,-150.87,0.00011799,2]
[339069632,1727197841742,-150.0,0.00011804,2]
[339069633,1727197841756,-316.2234366,0.00011812,2]
[339069634,1727197841765,-150.0,0.00011812,2]
[339069635,1727197841775,-150.87,0.00011812,2]
[339069636,1727197841784,-316.2234366,0.00011824,2]
[339069637,1727197841793,-150.87,0.00011824,2]
[339069638,1727197841803,-150.0,0.00011826,2]
[339069639,1727197841812,-316.2234366,0.00011837,2]
[339069640,1727197841821,-150.87,0.00011837,2]
[339069641,1727197841830,-150.0,0.0001184,2]
[339069642,1727197841839,-150.0,0.00011847,2]
[339069643,1727197841848,-316.2234366,0.0001185,2]
[339069644,1727197841857,-150.87,0.0001185,2]
[339069645,1727197841866,-150.0,0.00011854,2]
[339069646,1727197841875,-316.2234366,0.00011862,2]
[339069647,1727197841884,-150.87,0.00011862,2]
[339069648,1727197841893,-150.0,0.00011868,2]
[339069649,1727197841903,-316.2234366,0.00011875,2]
[339069650,1727197841912,-150.87,0.00011875,2]
[339069651,1727197841921,-150.0,0.00011883,2]
[339069652,1727197841930,-316.2234366,0.00011887,2]
[339069653,1727197841942,-150.87,0.00011887,2]
[339069654,1727197841952,-150.0,0.0001189,2]
[339069655,1727197841961,-210.44,0.00011893,2]
[339069656,1727197841971,-150.0,0.00011897,2]
[339069657,1727197841980,-316.2234366,0.000119,2]
[339069658,1727197841990,-150.87,0.000119,2]
[339069659,1727197842001,-150.0,0.00011911,2]
[339069660,1727197842010,-316.2234366,0.00011913,2]
[339069661,1727197842020,-150.87,0.00011913,2]
[339069662,1727197842029,-316.2234366,0.00011925,2]
[339069663,1727197842038,-150.0,0.00011925,2]
[339069664,1727197842047,-150.87,0.00011925,2]
[339069665,1727197842056,-150.0,0.00011933,2]
[339069666,1727197842066,-316.2234366,0.00011938,2]
[339069667,1727197842076,-150.87,0.00011938,2]
[339069668,1727197842085,-150.0,0.00011939,2]
[339069669,1727197842096,-316.2234366,0.00011951,2]
[339069670,1727197842105,-150.87,0.00011951,2]
[339069671,1727197842114,-150.0,0.00011954,2]
[339069672,1727197842123,-316.2234366,0.00011963,2]
[339069673,1727197842133,-150.87,0.00011963,2]
[339069674,1727197842142,-150.0,0.00011968,2]
[339069675,1727197842152,-316.2234366,0.00011976,2]
[339069676,1727197842161,-150.87,0.00011976,2]
[339069677,1727197842170,-150.0,0.00011976,2]
[339069678,1727197842179,-150.0,0.00011982,2]
[339069679,1727197842188,-316.2234366,0.00011988,2]
[339069680,1727197842197,-150.87,0.00011988,2]
[339069681,1727197842206,-150.0,0.00011993,2]
[339069682,1727197842215,-150.0,0.00011996,2]
[339069683,1727197842224,-316.2234366,0.00012001,2]
[339069684,1727197842233,-150.87,0.00012001,2]